Workbook

Sheet на 01,01,18
D1: УТВЕРЖДАЮ
C2: Главный врач ГБУЗ АО "Ахтубинская РБ"
C3: ________________________Е.И.Шиянова
D4: 2018-01-01
A6: ПРЕЙСКУРАНТ ТАРИФОВ НА ПЛАТНЫЕ МЕДИЦИНСКИЕ И СЕРВИСНЫЕ УСЛУГИ, ОКАЗЫВАЕМЫЕ НАСЕЛЕНИЮ ГБУЗ АО "АХТУБИНСКАЯ РБ"
A8: АМБУЛАТОРНО-ПОЛИКЛИНИЧЕСКАЯ ПОМОЩЬ
A10: код услуги | C10: Наименование услуги | D10: единица измерения | E10: Тарифы, руб.
A14: Кабинет врача-терапевта
A15: В | B15: 01.047.001.001 | C15: Прием (осмотр, консультация) врача - терапевта первичный (в поликлинике) | D15: 1 консультация | E15: 249
A16: В | B16: 01.047.002.001 | C16: Прием (осмотр, консультация) врача - терапевта повторный (в поликлинике) | D16: 1 консультация | E16: 166
A17: В | B17: 01.047.001.002 | C17: Прием (осмотр, консультация) врача - терапевта первичный (на дому) | D17: 1 консультация | E17: 415
A18: В | B18: 04.047.002 | C18: Профилактический прием (осмотр, консультация) врача - терапевта | D18: 1 консультация | E18: 208
A19: В | B19: 01.047.001.003 | C19: Прием (осмотр, консультация) врача - терапевта первичный (консультация районного специалиста) | D19: 1 консультация | E19: 415
A20: Кабинет врача-кардиолога
A21: B | B21: 01.015.001.001 | C21: Прием (осмотр, консультация) врача - кардиолога первичный (в поликлинике) | D21: 1 консультация | E21: 327
A22: B | B22: 01.015.002.001 | C22: Прием (осмотр, консультация) врача - кардиолога повторный (в поликлинике) | D22: 1 консультация | E22: 229
A23: В | B23: 01.015.001.002 | C23: Прием (осмотр, консультация) врача - кардиолога первичный (на дому) | D23: 1 консультация | E23: 982
A24: В | B24: 04.015.002 | C24: Профилактический прием (осмотр, консультация) врача - кардиолога | D24: 1 консультация | E24: 245
A25: Кабинет врача-ревматолога
A26: B | B26: 01.040.001.001 | C26: Прием (осмотр, консультация) врача - ревматолога первичный (в поликлинике) | D26: 1 консультация | E26: 491
A27: B | B27: 01.040.002.001 | C27: Прием (осмотр, консультация) врача - ревматолога повторный (в поликлинике) | D27: 1 консультация | E27: 344
A28: B | B28: 01.040.001.002 | C28: Прием (осмотр, консультация) врача - ревматолога первичный (на дому) | D28: 1 консультация | E28: 736
A29: B | B29: 04.040.002 | C29: Профилактический прием (осмотр, консультация) врача - ревматолога | D29: 1 консультация | E29: 327
A30: Кабинет врача-эндокринолога
A31: B | B31: 01.058.001.001 | C31: Прием (осмотр, консультация) врача - эндокринолога первичный (в поликлинике) | D31: 1 консультация | E31: 278
A32: B | B32: 01.058.002.001 | C32: Прием (осмотр, консультация) врача - эндокринолога повторный (в поликлинике) | D32: 1 консультация | E32: 196
A33: B | B33: 01.058.001.002 | C33: Прием (осмотр, консультация) врача - эндокринолога первичный (на дому) | D33: 1 консультация | E33: 736
A34: B | B34: 04.058.002 | C34: Профилактический прием (осмотр, консультация) врача - эндокринолога | D34: 1 консультация | E34: 245
A35: В | B35: 01.058.001.003 | C35: Прием (осмотр, консультация) врача - эндокринолога первичный (консультация районного специалиста) | D35: 1 консультация | E35: 491
A36: Кабинет врача-инфекциониста
A37: B | B37: 01.014.001.001 | C37: Прием (осмотр, консультация) врача - инфекциониста первичный (в поликлинике) | D37: 1 консультация | E37: 238
A38: B | B38: 01.014.002.001 | C38: Прием (осмотр, консультация) врача - инфекциониста повторный (в поликлинике) | D38: 1 консультация | E38: 159
A39: B | B39: 01.014.001.002 | C39: Прием (осмотр, консультация) врача - инфекциониста первичный (на дому) | D39: 1 консультация | E39: 714
A40: B | B40: 04.014.002 | C40: Профилактический прием (осмотр, консультация) врача - инфекциониста | D40: 1 консультация | E40: 206
A41: В | B41: 01.014.001.003 | C41: Прием (осмотр, консультация) врача - инфекциониста первичный (консультация районного специалиста) | D41: 1 консультация | E41: 476
A42: Кабинет врача-профпатолога
A43: B | B43: 01.033.001 | C43: Прием (осмотр, консультация) врача - профпатолога первичный | D43: 1 консультация | E43: 484
A44: B | B44: 01.033.002 | C44: Прием (осмотр, консультация) врача - профпатолога повторный | D44: 1 консультация | E44: 332
A45: D | B45: 22.02.02 | C45: Подготовка и написание заключения (врачом профпатологом) | D45: 1 консультация | E45: 131
A46: Кабинет врача-онколога
A47: B | B47: 01.027.001.001 | C47: Прием (осмотр, консультация) врача - онколога первичный (в поликлинике) | D47: 1 консультация | E47: 309
A48: B | B48: 01.027.002.001 | C48: Прием (осмотр, консультация) врача - онколога повторный (в поликлинике) | D48: 1 консультация | E48: 216
A49: В | B49: 01.027.001.002 | C49: Прием (осмотр, консультация) врача - онколога первичный (на дому) | D49: 1 консультация | E49: 926
A50: В | B50: 04.027.002 | C50: Профилактический прием (осмотр, консультация) врача - онколога | D50: 1 консультация | E50: 232
A51: В | B51: 01.027.001.003 | C51: Прием (осмотр, консультация) врача - онколога первичный (консультация районного специалиста) | D51: 1 консультация | E51: 309
A52: Кабинет врача-хирурга
A53: B | B53: 01.057.001.001 | C53: Прием (осмотр, консультация) врача - хирурга первичный (в поликлинике) | D53: 1 консультация | E53: 232
A54: B | B54: 01.057.002.001 | C54: Прием (осмотр, консультация) врача - хирурга повторный (в поликлинике) | D54: 1 консультация | E54: 154
A55: B | B55: 01.057.001.002 | C55: Прием (осмотр, консультация) врача - хирурга первичный (на дому) | D55: 1 консультация | E55: 695
A56: B | B56: 04.057.002 | C56: Профилактический прием (осмотр, консультация) врача - хирурга | D56: 1 консультация | E56: 154
A57: А | B57: 02.02.001.001 | C57: Измерение силы мыщц спины (динамометрия) | D57: 1 услуга | E57: 41
A58: А | B58: 01.19.004 | C58: Трансректальное пальцевое исследование | D58: 1 услуга | E58: 314
A59: А | B59: 16.01.034.001 | C59: Операция в амбулаторных условиях (в кабинете врача-хирурга) | D59: 1 операция | E59: 601
A60: А | B60: 15.01.001.001 | C60: Наложение повязки при нарушении целостности кожных покровов (в поликлинике) | D60: 1 услуга | E60: 343
A61: А | B61: 15.01.001.002 | C61: Наложение повязки при нарушении целостности кожных покровов (на дому) | D61: 1 услуга | E61: 575
A62: Кабинет врача-уролога
A63: B | B63: 01.053.001.001 | C63: Прием (осмотр, консультация) врача - уролога первичный (в поликлинике) | D63: 1 консультация | E63: 262
A64: B | B64: 01.053.002.001 | C64: Прием (осмотр, консультация) врача - уролога повторный (в поликлинике) | D64: 1 консультация | E64: 185
A65: B | B65: 01.053.001.002 | C65: Прием (осмотр, консультация) врача - уролога первичный (на дому) | D65: 1 консультация | E65: 695
A66: B | B66: 04.053.002 | C66: Профилактический прием (осмотр, консультация) врача - уролога | D66: 1 консультация | E66: 232
A67: A | B67: 21.21.001 | C67: Массаж простаты | D67: 1 услуга | E67: 266
A68: А | B68: 11.21.004 | C68: Сбор секрета простаты | D68: 1 услуга | E68: 113
A69: А | B69: 16.28.071 | C69: Прижигание полипов уретры | D69: 1 услуга | E69: 217
A70: A | B70: 14.28.003 | C70: Уход за цистостомой и уростомой | D70: 1 услуга | E70: 113
A71: А | B71: 16.28.072 | C71: Прижигание эрозий уретры | D71: 1 услуга | E71: 113
A72: A | B72: 11.28.007.001 | C72: Катетеризация мочевого пузыря (у женщин) | D72: 1 услуга | E72: 154
A73: A | B73: 11.28.007.002 | C73: Катетеризация мочевого пузыря (у мужчин) | D73: 1 услуга | E73: 200
A74: A | B74: 03.28.001 | C74: Цистоскопия | D74: 1 услуга | E74: 622
A75: A | B75: 11.28.009 | C75: Инсталляция уретры | D75: 1 услуга | E75: 343
A76: A | B76: 11.28.008 | C76: Инсталляция мочевого пузыря | D76: 1 услуга | E76: 354
A77: B | B77: 01.053.001.003 | C77: Прием (осмотр, консультация) врача - уролога первичный (андрологический профиль) | D77: 1 услуга | E77: 320
A78: Кабинет врача - офтальмолога
A79: B | B79: 01.029.001.001 | C79: Прием (осмотр, консультация) врача - офтальмолога первичный (в поликлинике) | D79: 1 консультация | E79: 617
A80: B | B80: 01.029.002.001 | C80: Прием (осмотр, консультация) врача - офтальмолога повторный (в поликлинике) | D80: 1 консультация | E80: 432
A81: B | B81: 01.029.001.002 | C81: Прием (осмотр, консультация) врача - офтальмолога первичный (на дому) | D81: 1 консультация | E81: 695
A82: B | B82: 04.029.002 | C82: Профилактический прием (осмотр, консультация) врача - офтальмолога | D82: 1 консультация | E82: 180
A83: В | B83: 01.029.001.003 | C83: Прием (осмотр, консультация) врача - офтальмолога первичный (консультация районного специалиста) | D83: 1 консультация | E83: 463
A84: A | B84: 02.26.013 | C84: Определение рефракции с помощью набора пробных линз | D84: 1 услуга | E84: 114
A85: A | B85: 11.26.004 | C85: Зондирование слезных путей (и промывание) | D85: 1 услуга | E85: 378
A86: A | B86: 11.26.011 | C86: Пара- и ретробульбарные инъекции | D86: 1 услуга | E86: 120
A87: A | B87: 03.26.003 | C87: Осмотр периферии глазного дна трехзеркальной линзой Гольдмана | D87: 1 услуга | E87: 118
A88: A | B88: 16.26.051 | C88: Удаление инородного тела роговицы | D88: 1 услуга | E88: 501
A89: A | B89: 03.26.001 | C89: Биомикроскопия глаза | D89: 1 услуга | E89: 83
A90: A | B90: 02.26.005 | C90: Периметрия | D90: 1 услуга | E90: 62
A91: A | B91: 02.26.015 | C91: Тонометрия глаза | D91: 1 услуга | E91: 114
A92: A | B92: 02.26.009 | C92: Исследование цветоощущения по полихроматическим таблицам | D92: 1 исследование | E92: 57
A93: A | B93: 16.26.018 | C93: Эпиляция ресниц | D93: 1 услуга | E93: 325
A94: A | B94: 16.26.057 | C94: Удаление инородного тела из переднего сигмента глаза | D94: 1 услуга | E94: 377
A95: A | B95: 02.26.004 | C95: Визометрия | D95: 1 услуга | E95: 57
A96: А | B96: 23.26.001.01 | C96: Подбор очковой коррекции (сложная) | D96: 1 услуга | E96: 402
A97: A | B97: 23.26.001.02 | C97: Подбор очковой коррекции (простая) | D97: 1 услуга | E97: 284
A98: A | B98: 21.26.001 | C98: Массаж век медицинский | D98: 1 услуга | E98: 288
A99: А | B99: 19.26.001 | C99: Упражнения для восстановления и укрепления биокулярного зрения | D99: 1 сеанс | E99: 81
A100: А | B100: 02.26.023 | C100: Исследование аккомодации | D100: 1 исследование | E100: 59
A101: Кабинет врача - акушера - гинеколога
A102: B | B102: 01.001.001.001 | C102: Прием (осмотр, консультация) врача - акушера - гинеколога первичный (в поликлинике) | D102: 1 консультация | E102: 309
A103: B | B103: 01.001.002.001 | C103: Прием (осмотр, консультация) врача - акушера - гинеколога повторный (в поликлинике) | D103: 1 консультация | E103: 216
A104: B | B104: 01.001.001.002 | C104: Прием (осмотр, консультация) врача - акушера - гинеколога первичный (на дому) | D104: 1 консультация | E104: 695
A105: B | B105: 04.001.002 | C105: Профилактический прием (осмотр, консультация) врача - акушера - гинеколога | D105: 1 консультация | E105: 232
A106: A | B106: 11.20.005 | C106: Получение влагалищного мазка | D106: 1 услуга | E106: 85
A107: А | B107: 16.20.037.002 | C107: Искусственное прерывание беременности (аборт) (аборт медикаментозный) | D107: 1 услуга | E107: 4197
A108: A | B108: 16.20.036 | C108: Хирургическое лечение заболеваний шейки матки с использованием различных энергий | D108: 1 услуга | E108: 632
A109: A | B109: 03.20.001 | C109: Кольпоскопия | D109: 1 услуга | E109: 437
A110: A | B110: 11.20.013 | C110: Тампонирование лечебное влагалища | D110: 1 услуга | E110: 251
A111: A | B111: 11.20.014.001 | C111: Введение внутриматочной спирали (без стоимости спирали) | D111: 1 услуга | E111: 418
A112: A | B112: 11.20.015 | C112: Удаление внутриматочной спирали | D112: 1 услуга | E112: 381
A113: A | B113: 16.20.059 | C113: Удаление инородных тел из влагалища | D113: 1 услуга | E113: 526
A114: A | B114: 16.20.037.001 | C114: Искусственное прерывание беременности (аборт) (прерывание беременности ранних сроков методом вакум-аспираци) | D114: 1 услуга | E114: 497
A115: А | B115: 01.20.003 | C115: Бимануальное влагалищное исследование | D115: 1 услуга | E115: 85
A116: А | B116: 02.20.001.001 | C116: Осмотр шейки матки в зеркалах (Профилактический осмотр акушеркой) | D116: 1 осмотр | E116: 76
A117: Кабинет врача - дерматовенеролога
A118: B | B118: 01.008.001.001 | C118: Прием (осмотр, консультация) врача - дерматовенеролога первичный (в поликлинике) | D118: 1 консультация | E118: 317
A119: B | B119: 01.008.002.001 | C119: Прием (осмотр, консультация) врача - дерматовенеролога повторный (в поликлинике) | D119: 1 консультация | E119: 222
A120: B | B120: 01.008.001.002 | C120: Прием (осмотр, консультация) врача - дерматовенеролога первичный (на дому) | D120: 1 консультация | E120: 714
A121: B | B121: 04.008.002 | C121: Профилактический прием (осмотр, консультация) врача - дерматовенеролога | D121: 1 консультация | E121: 174
A122: В | B122: 01.008.001.003 | C122: Прием (осмотр, консультация) врача - дерматовенеролога первичный (консультация районного специалиста) | D122: 1 консультация | E122: 476
A123: B | B123: 01.008.001.004 | C123: Прием (осмотр, консультация) врача - дерматовенеролога первичный (при медицинском освидетельствовании иностранных граждан) | D123: 1 консультация | E123: 317
A124: B | B124: 01.008.002.002 | C124: Прием (осмотр, консультация) врача - дерматовенеролога повторный (при медицинском освидетельствовании иностранных граждан) | D124: 1 консультация | E124: 222
A125: А | B125: 16.01.017 | C125: Удаление доброкачественных новообразований кожи | D125: 1 процедура | E125: 226
A126: A | B126: 24.01.004 | C126: Криодеструкция | D126: 1 процедура | E126: 102
A127: A | B127: 24.01.005.001 | C127: Криомассаж кожи и ее образований (лица) | D127: 1 процедура | E127: 155
A128: A | B128: 24.01.005.002 | C128: Криомассаж кожи и ее образований (шеи) | D128: 1 процедура | E128: 155
A129: Кабинет врача - травматолога - ортопеда
A130: B | B130: 01.050.001.001 | C130: Прием (осмотр, консультация) врача - травматолога - ортопеда первичный (в поликлинике) | D130: 1 консультация | E130: 170
A131: B | B131: 01.050.002.001 | C131: Прием (осмотр, консультация) врача - травматолога - ортопеда повторный (в поликлинике) | D131: 1 консультация | E131: 108
A132: B | B132: 01.050.001.002 | C132: Прием (осмотр, консультация) врача - травматолога - ортопеда первичный (на дому) | D132: 1 консультация | E132: 695
A133: B | B133: 04.050.002 | C133: Профилактический прием (осмотр, консультация) врача - травматолога - ортопеда | D133: 1 консультация | E133: 154
A134: А | B134: 11.04.004 | C134: Внутрисуставное введение лекарственных препаратов | D134: 1 услуга | E134: 299
A135: А | B135: 15.02.002 | C135: Наложение иммобилизационной повязки при синдроме длительного сдавливания | D135: 1 услуга | E135: 353
A136: А | B136: 15.02.001 | C136: Наложение повязки при заболеваниях мыщц | D136: 1 услуга | E136: 330
A137: А | B137: 15.03.001 | C137: Наложение повязки при переломах костей | D137: 1 услуга | E137: 353
A138: А | B138: 15.03.002.001 | C138: Наложение иммобилизационной повязки при переломах позвоночника | D138: 1 услуга | E138: 763
A139: А | B139: 15.03.004 | C139: Наложение корсета при патологии шейного отдела позвоночника | D139: 1 услуга | E139: 355
A140: А | B140: 15.03.005 | C140: Наложение корсета патологии грудного отдела позвоночника | D140: 1 услуга | E140: 701
A141: А | B141: 15.03.006 | C141: Наложение корсета при патологии поясничного отдела позвоночника | D141: 1 услуга | E141: 701
A142: А | B142: 15.03.007 | C142: Наложение шины при переломах костей | D142: 1 услуга | E142: 224
A143: А | B143: 15.04.002 | C143: Наложение иммобилизационной повязки при вывихах (подвывихах) суставов | D143: 1 услуга | E143: 328
A144: А | B144: 15.04.001 | C144: Наложение повязки при вывихах (подвывихах) суставов | D144: 1 услуга | E144: 328
A145: А | B145: 16.01.034.002 | C145: Операция в амбулаторных условиях (в кабинете врача-травматолога-ортопеда) | D145: 1 операция | E145: 601
A146: Кабинет врача - оториноларинголога
A147: B | B147: 01.028.001.001 | C147: Прием (осмотр, консультация) врача - оториноларинголога первичный (в поликлинике) | D147: 1 консультация | E147: 309
A148: B | B148: 01.028.001.002 | C148: Прием (осмотр, консультация) врача - оториноларинголога повторный (в поликлинике) | D148: 1 консультация | E148: 216
A149: B | B149: 01.028.002.001 | C149: Прием (осмотр, консультация) врача - оториноларинголога первичный (на дому) | D149: 1 консультация | E149: 926
A150: B | B150: 04.028.002 | C150: Профилактический прием (осмотр, консультация) врача - оториноларинголога | D150: 1 консультация | E150: 154
A151: В | B151: 01.028.001.003 | C151: Прием (осмотр, консультация) врача - оториноларинголога первичный (консультация районного специалиста) | D151: 1 консультация | E151: 463
A152: A | B152: 16.01.011 | C152: Вскрытие фурункула (карбункула) | D152: 1 услуга | E152: 436
A153: A | B153: 16.08.011 | C153: Удаление инородного тела носа | D153: 1 услуга | E153: 359
A154: A | B154: 16.08.016 | C154: Промывание лакун миндалин | D154: 1 услуга | E154: 374
A155: A | B155: 12.25.002 | C155: Речевая аудиометрия | D155: 1 услуга | E155: 232
A156: A | B156: 11.08.004 | C156: Пункция околоносовых пазух | D156: 1 услуга | E156: 431
A157: A | B157: 16.08.006.001 | C157: Механическая остановка кровотечения (передняя и задняя тампонада носа) (передняя) | D157: 1 услуга | E157: 385
A158: A | B158: 16.08.006.002 | C158: Механическая остановка кровотечения(задняя тампонада носа) (задняя) | D158: 1 услуга | E158: 467
A159: А | B159: 03.25.001 | C159: Вестибулометрия | D159: 1 исследование | E159: 345
A160: А | B160: 16.25.008 | C160: Удаление инородного тела из слухового прохода | D160: 1 услуга | E160: 263
A161: А | B161: 16.25.007 | C161: Удаление ушной серы | D161: 1 услуга | E161: 340
A162: Кабинет врача - невролога
A163: B | B163: 01.023.001.001 | C163: Прием (осмотр, консультация) врача - невролога первичный (в поликлинике) | D163: 1 консультация | E163: 327
A164: B | B164: 01.023.002.001 | C164: Прием (осмотр, консультация) врача - невролога повторный (в поликлинике) | D164: 1 консультация | E164: 229
A165: B | B165: 01.023.001.002 | C165: Прием (осмотр, консультация) врача - невролога первичный (на дому) | D165: 1 консультация | E165: 736
A166: B | B166: 04.023.002 | C166: Профилактический прием (осмотр, консультация) врача - невролога | D166: 1 консультация | E166: 180
A167: А | B167: 22.30.006 | C167: Вибрационное воздействие | D167: 1 услуга | E167: 52
A168: Кабинет медицинского психолога
A169: А | B169: 13.29.006 | C169: Психологическое консультирование | D169: 1 консультация | E169: 430
A170: В | B170: 02.069.001 | C170: Прием(тестирование, консультация) медицинского психолога первичный | D170: 1 консультация | E170: 430
A171: В | B171: 02.069.001.001 | C171: Прием(тестирование, консультация) медицинского психолога первичный (на дому) | D171: 1 консультация | E171: 430
A172: В | B172: 02.069.002 | C172: Прием(тестирование, консультация) медицинского психолога повторное | D172: 1 консультация | E172: 378
A173: В | B173: 04.069.001 | C173: Школа психологической профилактики для пациентов и родственников | D173: 1 сеанс | E173: 430
A174: В | B174: 04.069.002 | C174: Индивидуальное краткое профилактическое консультирование по коррекции факторов риска развития неинфекционных заболеваний | D174: 1 консультация | E174: 378
A175: 0 | B175: 04.069.003 | C175: Индивидуальное углубленное профилактическое консультирование по коррекции факторов риска развития неинфекционных заболеваний | D175: 1 консультация | E175: 638
A176: В | B176: 04.069.004 | C176: Индивидуальное углубленное профилактическое консультирование по коррекции факторов риска развития неинфекционных заболеваний повторное | D176: 1 консультация | E176: 638
A177: В | B177: 04.069.005 | C177: Групповое профилактическое консультарование по коррекции факторов риска развития неифекционных заболеваний | D177: 1 консультация | E177: 169
A178: В | B178: 13.29.003.001 | C178: Тестологическое психодиагностическое обследование | D178: 1 сеанс | E178: 482
A179: В | B179: 13.29.003.001.001 | C179: Тестологическое психодиагностическое обследование (на дому) | D179: 1 сеанс | E179: 482
A180: А | B180: 13.29.006.003 | C180: Семейное психологическое консультирование | D180: 1 сеанс | E180: 638
A181: А | B181: 13.29.005.001 | C181: Арттерапия | D181: 1 сеанс | E181: 169
A182: А | B182: 13.29.007.001.001 | C182: Индивидуальная психологическая коррекция (для младших школьников и дошкольников) | D182: 1 сеанс | E182: 378
A183: Кабинет врача - фтизиатра
A184: B | B184: 01.055.001.001 | C184: Прием (осмотр, консультация) врача - фтизиатра первичный (в поликлинике) | D184: 1 консультация | E184: 324
A185: B | B185: 01.055.002.001 | C185: Прием (осмотр, консультация) врача - фтизиатра повторный (в поликлинике) | D185: 1 консультация | E185: 216
A186: В | B186: 01.055.001.002 | C186: Прием (осмотр, консультация) врача - фтизиатра первичный (на дому) | D186: 1 консультация | E186: 810
A187: В | B187: 04.055.002 | C187: Профилактический прием (осмотр, консультация) врача - фтизиатра | D187: 1 консультация | E187: 270
A188: Кабинет врача - психиатра
A189: В | B189: 04.035.002 | C189: Профилактический прием (осмотр, консультация) врача-психиатра | D189: 1 консультация | E189: 208
A190: Кабинет врача психиатра-нарколога
A191: В | B191: 04.036.002 | C191: Профилактический прием (осмотр, консультация) врача психиатра-нарколога | D191: 1 консультация | E191: 200
A192: В | B192: 01.036.001 | C192: Прием (осмотр, консультация) врача-психиатра-нарколога первичный | D192: 1 консультация | E192: 308
A193: А | B193: 09.28.055.001.001 | C193: Определение наличия психоактивных веществ в моче с помощью тест-полоски (тест полоска "ИммуноХром-6-Мульти-Экспресс" на 6 видов наркотиков) | D193: 1 определение | E193: 753
A194: А | B194: 09.28.055.001.002 | C194: Определение наличия психоактивных веществ в моче с помощью тест-полоски (тест полоска "ИммуноХром-Фенциклидин" на 1 вид наркотика) | D194: 1 определение | E194: 431
A195: Услуги специалистов детской поликлиники № 1
A197: В | B197: 01.031.001.001 | C197: Прием (осмотр, консультация) врача - педиатра первичный (в поликлинике) | D197: 1 консультация | E197: 221
A198: В | B198: 01.031.002.001 | C198: Прием (осмотр, консультация) врача - педиатра повторный (в поликлинике) | D198: 1 консультация | E198: 152
A199: В | B199: 01.031.001.002 | C199: Прием (осмотр, консультация) врача - педиатра (на дому) | D199: 1 консультация | E199: 415
A200: В | B200: 04.031.002 | C200: Профилактический прием (осмотр, консультация) врача - педиатра | D200: 1 консультация | E200: 208
A201: В | B201: 01.031.001.003 | C201: Прием (осмотр, консультация) врача - педиатра первичный (консультация районного специалиста) | D201: 1 консультация | E201: 415
A202: В | B202: 01.031.001.004 | C202: Прием (осмотр, консультация) врача - педиатра первичный (с целью оформления медицинской карты на ребенка) | D202: 1 осмотр | E202: 156
A203: B | B203: 01.023.001.003 | C203: Прием (осмотр, консультация) врача - невролога первичный (в поликлинике) | D203: 1 консультация | E203: 340
A204: B | B204: 01.023.002.002 | C204: Прием (осмотр, консультация) врача - невролога повторный (в поликлинике) | D204: 1 консультация | E204: 232
A205: B | B205: 01.023.001.004 | C205: Прием (осмотр, консультация) врача - невролога первичный (на дому) | D205: 1 консультация | E205: 695
A206: B | B206: 01.023.002.001 | C206: Профилактический прием (осмотр, консультация) врача - невролога | D206: 1 консультация | E206: 232
A207: B | B207: 01.028.001.004 | C207: Прием (осмотр, консультация) врача - оториноларинголога первичный (в поликлинике) | D207: 1 консультация | E207: 309
... 1093 more rows

Sheet на 31,12,18
D1: УТВЕРЖДАЮ
C2: Главный врач ГБУЗ АО "Ахтубинская РБ"
C3: ________________________МА Таласбаев
D4: на 31.12.2018
A6: ПРЕЙСКУРАНТ ТАРИФОВ НА ПЛАТНЫЕ МЕДИЦИНСКИЕ И СЕРВИСНЫЕ УСЛУГИ, ОКАЗЫВАЕМЫЕ НАСЕЛЕНИЮ ГБУЗ АО "АХТУБИНСКАЯ РБ"
A8: АМБУЛАТОРНО-ПОЛИКЛИНИЧЕСКАЯ ПОМОЩЬ
A10: код услуги | C10: Наименование услуги | D10: единица измерения | E10: Тарифы, руб.
A14: Кабинет врача-терапевта
A15: В | B15: 01.047.001.001 | C15: Прием (осмотр, консультация) врача - терапевта первичный (в поликлинике) | D15: 1 консультация | E15: 249
A16: В | B16: 01.047.002.001 | C16: Прием (осмотр, консультация) врача - терапевта повторный (в поликлинике) | D16: 1 консультация | E16: 166
A17: В | B17: 01.047.001.002 | C17: Прием (осмотр, консультация) врача - терапевта первичный (на дому) | D17: 1 консультация | E17: 415
A18: В | B18: 04.047.002 | C18: Профилактический прием (осмотр, консультация) врача - терапевта | D18: 1 консультация | E18: 208
A19: В | B19: 01.047.001.003 | C19: Прием (осмотр, консультация) врача - терапевта первичный (консультация районного специалиста) | D19: 1 консультация | E19: 415
A20: Кабинет врача-кардиолога
A21: B | B21: 01.015.001.001 | C21: Прием (осмотр, консультация) врача - кардиолога первичный (в поликлинике) | D21: 1 консультация | E21: 327
A22: B | B22: 01.015.002.001 | C22: Прием (осмотр, консультация) врача - кардиолога повторный (в поликлинике) | D22: 1 консультация | E22: 229
A23: В | B23: 01.015.001.002 | C23: Прием (осмотр, консультация) врача - кардиолога первичный (на дому) | D23: 1 консультация | E23: 982
A24: В | B24: 04.015.002 | C24: Профилактический прием (осмотр, консультация) врача - кардиолога | D24: 1 консультация | E24: 245
A25: Кабинет врача-ревматолога
A26: B | B26: 01.040.001.001 | C26: Прием (осмотр, консультация) врача - ревматолога первичный (в поликлинике) | D26: 1 консультация | E26: 491
A27: B | B27: 01.040.002.001 | C27: Прием (осмотр, консультация) врача - ревматолога повторный (в поликлинике) | D27: 1 консультация | E27: 344
A28: B | B28: 01.040.001.002 | C28: Прием (осмотр, консультация) врача - ревматолога первичный (на дому) | D28: 1 консультация | E28: 736
A29: B | B29: 04.040.002 | C29: Профилактический прием (осмотр, консультация) врача - ревматолога | D29: 1 консультация | E29: 327
A30: Кабинет врача-эндокринолога
A31: B | B31: 01.058.001.001 | C31: Прием (осмотр, консультация) врача - эндокринолога первичный (в поликлинике) | D31: 1 консультация | E31: 278
A32: B | B32: 01.058.002.001 | C32: Прием (осмотр, консультация) врача - эндокринолога повторный (в поликлинике) | D32: 1 консультация | E32: 196
A33: B | B33: 01.058.001.002 | C33: Прием (осмотр, консультация) врача - эндокринолога первичный (на дому) | D33: 1 консультация | E33: 736
A34: B | B34: 04.058.002 | C34: Профилактический прием (осмотр, консультация) врача - эндокринолога | D34: 1 консультация | E34: 245
A35: В | B35: 01.058.001.003 | C35: Прием (осмотр, консультация) врача - эндокринолога первичный (консультация районного специалиста) | D35: 1 консультация | E35: 491
A36: Кабинет врача-инфекциониста
A37: B | B37: 01.014.001.001 | C37: Прием (осмотр, консультация) врача - инфекциониста первичный (в поликлинике) | D37: 1 консультация | E37: 238
A38: B | B38: 01.014.002.001 | C38: Прием (осмотр, консультация) врача - инфекциониста повторный (в поликлинике) | D38: 1 консультация | E38: 159
A39: B | B39: 01.014.001.002 | C39: Прием (осмотр, консультация) врача - инфекциониста первичный (на дому) | D39: 1 консультация | E39: 714
A40: B | B40: 04.014.002 | C40: Профилактический прием (осмотр, консультация) врача - инфекциониста | D40: 1 консультация | E40: 206
A41: В | B41: 01.014.001.003 | C41: Прием (осмотр, консультация) врача - инфекциониста первичный (консультация районного специалиста) | D41: 1 консультация | E41: 476
A42: Кабинет врача-профпатолога
A43: B | B43: 01.033.001 | C43: Прием (осмотр, консультация) врача - профпатолога первичный | D43: 1 консультация | E43: 484
A44: B | B44: 01.033.002 | C44: Прием (осмотр, консультация) врача - профпатолога повторный | D44: 1 консультация | E44: 332
A45: D | B45: 22.02.02 | C45: Подготовка и написание заключения (врачом профпатологом) | D45: 1 консультация | E45: 131
A46: Кабинет врача-онколога
A47: B | B47: 01.027.001.001 | C47: Прием (осмотр, консультация) врача - онколога первичный (в поликлинике) | D47: 1 консультация | E47: 309
A48: B | B48: 01.027.002.001 | C48: Прием (осмотр, консультация) врача - онколога повторный (в поликлинике) | D48: 1 консультация | E48: 216
A49: В | B49: 01.027.001.002 | C49: Прием (осмотр, консультация) врача - онколога первичный (на дому) | D49: 1 консультация | E49: 926
A50: В | B50: 04.027.002 | C50: Профилактический прием (осмотр, консультация) врача - онколога | D50: 1 консультация | E50: 232
A51: В | B51: 01.027.001.003 | C51: Прием (осмотр, консультация) врача - онколога первичный (консультация районного специалиста) | D51: 1 консультация | E51: 309
A52: Кабинет врача-хирурга
A53: B | B53: 01.057.001.001 | C53: Прием (осмотр, консультация) врача - хирурга первичный (в поликлинике) | D53: 1 консультация | E53: 232
A54: B | B54: 01.057.002.001 | C54: Прием (осмотр, консультация) врача - хирурга повторный (в поликлинике) | D54: 1 консультация | E54: 154
A55: B | B55: 01.057.001.002 | C55: Прием (осмотр, консультация) врача - хирурга первичный (на дому) | D55: 1 консультация | E55: 695
A56: B | B56: 04.057.002 | C56: Профилактический прием (осмотр, консультация) врача - хирурга | D56: 1 консультация | E56: 154
A57: А | B57: 02.02.001.001 | C57: Измерение силы мыщц спины (динамометрия) | D57: 1 услуга | E57: 41
A58: А | B58: 01.19.004 | C58: Трансректальное пальцевое исследование | D58: 1 услуга | E58: 314
A59: А | B59: 16.01.034.001 | C59: Операция в амбулаторных условиях (в кабинете врача-хирурга) | D59: 1 операция | E59: 601
A60: А | B60: 15.01.001.001 | C60: Наложение повязки при нарушении целостности кожных покровов (в поликлинике) | D60: 1 услуга | E60: 343
A61: А | B61: 15.01.001.002 | C61: Наложение повязки при нарушении целостности кожных покровов (на дому) | D61: 1 услуга | E61: 575
A62: Кабинет врача-уролога
A63: B | B63: 01.053.001.001 | C63: Прием (осмотр, консультация) врача - уролога первичный (в поликлинике) | D63: 1 консультация | E63: 262
A64: B | B64: 01.053.002.001 | C64: Прием (осмотр, консультация) врача - уролога повторный (в поликлинике) | D64: 1 консультация | E64: 185
A65: B | B65: 01.053.001.002 | C65: Прием (осмотр, консультация) врача - уролога первичный (на дому) | D65: 1 консультация | E65: 695
A66: B | B66: 04.053.002 | C66: Профилактический прием (осмотр, консультация) врача - уролога | D66: 1 консультация | E66: 232
A67: A | B67: 21.21.001 | C67: Массаж простаты | D67: 1 услуга | E67: 266
A68: А | B68: 11.21.004 | C68: Сбор секрета простаты | D68: 1 услуга | E68: 113
A69: А | B69: 16.28.071 | C69: Прижигание полипов уретры | D69: 1 услуга | E69: 217
A70: A | B70: 14.28.003 | C70: Уход за цистостомой и уростомой | D70: 1 услуга | E70: 113
A71: А | B71: 16.28.072 | C71: Прижигание эрозий уретры | D71: 1 услуга | E71: 113
A72: A | B72: 11.28.007.001 | C72: Катетеризация мочевого пузыря (у женщин) | D72: 1 услуга | E72: 154
A73: A | B73: 11.28.007.002 | C73: Катетеризация мочевого пузыря (у мужчин) | D73: 1 услуга | E73: 200
A74: A | B74: 03.28.001 | C74: Цистоскопия | D74: 1 услуга | E74: 622
A75: A | B75: 11.28.009 | C75: Инсталляция уретры | D75: 1 услуга | E75: 343
A76: A | B76: 11.28.008 | C76: Инсталляция мочевого пузыря | D76: 1 услуга | E76: 354
A77: B | B77: 01.053.001.003 | C77: Прием (осмотр, консультация) врача - уролога первичный (андрологический профиль) | D77: 1 услуга | E77: 320
A78: Кабинет врача - офтальмолога
A79: B | B79: 01.029.001.001 | C79: Прием (осмотр, консультация) врача - офтальмолога первичный (в поликлинике) | D79: 1 консультация | E79: 617
A80: B | B80: 01.029.002.001 | C80: Прием (осмотр, консультация) врача - офтальмолога повторный (в поликлинике) | D80: 1 консультация | E80: 432
A81: B | B81: 01.029.001.002 | C81: Прием (осмотр, консультация) врача - офтальмолога первичный (на дому) | D81: 1 консультация | E81: 695
A82: B | B82: 04.029.002 | C82: Профилактический прием (осмотр, консультация) врача - офтальмолога | D82: 1 консультация | E82: 180
A83: В | B83: 01.029.001.003 | C83: Прием (осмотр, консультация) врача - офтальмолога первичный (консультация районного специалиста) | D83: 1 консультация | E83: 463
A84: A | B84: 02.26.013 | C84: Определение рефракции с помощью набора пробных линз | D84: 1 услуга | E84: 114
A85: A | B85: 11.26.004 | C85: Зондирование слезных путей (и промывание) | D85: 1 услуга | E85: 378
A86: A | B86: 11.26.011 | C86: Пара- и ретробульбарные инъекции | D86: 1 услуга | E86: 120
A87: A | B87: 03.26.003 | C87: Осмотр периферии глазного дна трехзеркальной линзой Гольдмана | D87: 1 услуга | E87: 118
A88: A | B88: 16.26.051 | C88: Удаление инородного тела роговицы | D88: 1 услуга | E88: 501
A89: A | B89: 03.26.001 | C89: Биомикроскопия глаза | D89: 1 услуга | E89: 83
A90: A | B90: 02.26.005 | C90: Периметрия | D90: 1 услуга | E90: 62
A91: A | B91: 02.26.015 | C91: Тонометрия глаза | D91: 1 услуга | E91: 114
A92: A | B92: 02.26.009 | C92: Исследование цветоощущения по полихроматическим таблицам | D92: 1 исследование | E92: 57
A93: A | B93: 16.26.018 | C93: Эпиляция ресниц | D93: 1 услуга | E93: 325
A94: A | B94: 16.26.057 | C94: Удаление инородного тела из переднего сигмента глаза | D94: 1 услуга | E94: 377
A95: A | B95: 02.26.004 | C95: Визометрия | D95: 1 услуга | E95: 57
A96: А | B96: 23.26.001.01 | C96: Подбор очковой коррекции (сложная) | D96: 1 услуга | E96: 402
A97: A | B97: 23.26.001.02 | C97: Подбор очковой коррекции (простая) | D97: 1 услуга | E97: 284
A98: A | B98: 21.26.001 | C98: Массаж век медицинский | D98: 1 услуга | E98: 288
A99: А | B99: 19.26.001 | C99: Упражнения для восстановления и укрепления биокулярного зрения | D99: 1 сеанс | E99: 81
A100: А | B100: 02.26.023 | C100: Исследование аккомодации | D100: 1 исследование | E100: 59
A101: Кабинет врача - акушера - гинеколога
A102: B | B102: 01.001.001.001 | C102: Прием (осмотр, консультация) врача - акушера - гинеколога первичный (в поликлинике) | D102: 1 консультация | E102: 309
A103: B | B103: 01.001.002.001 | C103: Прием (осмотр, консультация) врача - акушера - гинеколога повторный (в поликлинике) | D103: 1 консультация | E103: 216
A104: B | B104: 01.001.001.002 | C104: Прием (осмотр, консультация) врача - акушера - гинеколога первичный (на дому) | D104: 1 консультация | E104: 695
A105: B | B105: 04.001.002 | C105: Профилактический прием (осмотр, консультация) врача - акушера - гинеколога | D105: 1 консультация | E105: 232
A106: A | B106: 11.20.005 | C106: Получение влагалищного мазка | D106: 1 услуга | E106: 85
A107: А | B107: 16.20.037.002 | C107: Искусственное прерывание беременности (аборт) (аборт медикаментозный) | D107: 1 услуга | E107: 4197
A108: A | B108: 16.20.036 | C108: Хирургическое лечение заболеваний шейки матки с использованием различных энергий | D108: 1 услуга | E108: 632
A109: A | B109: 03.20.001 | C109: Кольпоскопия | D109: 1 услуга | E109: 437
A110: A | B110: 11.20.013 | C110: Тампонирование лечебное влагалища | D110: 1 услуга | E110: 251
A111: A | B111: 11.20.014.001 | C111: Введение внутриматочной спирали (без стоимости спирали) | D111: 1 услуга | E111: 418
A112: A | B112: 11.20.015 | C112: Удаление внутриматочной спирали | D112: 1 услуга | E112: 381
A113: A | B113: 16.20.059 | C113: Удаление инородных тел из влагалища | D113: 1 услуга | E113: 526
A114: A | B114: 16.20.037.001 | C114: Искусственное прерывание беременности (аборт) (прерывание беременности ранних сроков методом вакум-аспираци) | D114: 1 услуга | E114: 497
A115: А | B115: 01.20.003 | C115: Бимануальное влагалищное исследование | D115: 1 услуга | E115: 85
A116: А | B116: 02.20.001.001 | C116: Осмотр шейки матки в зеркалах (Профилактический осмотр акушеркой) | D116: 1 осмотр | E116: 76
A117: Кабинет врача - дерматовенеролога
A118: B | B118: 01.008.001.001 | C118: Прием (осмотр, консультация) врача - дерматовенеролога первичный (в поликлинике) | D118: 1 консультация | E118: 317
A119: B | B119: 01.008.002.001 | C119: Прием (осмотр, консультация) врача - дерматовенеролога повторный (в поликлинике) | D119: 1 консультация | E119: 222
A120: B | B120: 01.008.001.002 | C120: Прием (осмотр, консультация) врача - дерматовенеролога первичный (на дому) | D120: 1 консультация | E120: 714
A121: B | B121: 04.008.002 | C121: Профилактический прием (осмотр, консультация) врача - дерматовенеролога | D121: 1 консультация | E121: 174
A122: В | B122: 01.008.001.003 | C122: Прием (осмотр, консультация) врача - дерматовенеролога первичный (консультация районного специалиста) | D122: 1 консультация | E122: 476
A123: B | B123: 01.008.001.004 | C123: Прием (осмотр, консультация) врача - дерматовенеролога первичный (при медицинском освидетельствовании иностранных граждан) | D123: 1 консультация | E123: 317
A124: B | B124: 01.008.002.002 | C124: Прием (осмотр, консультация) врача - дерматовенеролога повторный (при медицинском освидетельствовании иностранных граждан) | D124: 1 консультация | E124: 222
A125: А | B125: 16.01.017 | C125: Удаление доброкачественных новообразований кожи | D125: 1 процедура | E125: 226
A126: A | B126: 24.01.004 | C126: Криодеструкция | D126: 1 процедура | E126: 102
A127: A | B127: 24.01.005.001 | C127: Криомассаж кожи и ее образований (лица) | D127: 1 процедура | E127: 155
A128: A | B128: 24.01.005.002 | C128: Криомассаж кожи и ее образований (шеи) | D128: 1 процедура | E128: 155
A129: Кабинет врача - травматолога - ортопеда
A130: B | B130: 01.050.001.001 | C130: Прием (осмотр, консультация) врача - травматолога - ортопеда первичный (в поликлинике) | D130: 1 консультация | E130: 170
A131: B | B131: 01.050.002.001 | C131: Прием (осмотр, консультация) врача - травматолога - ортопеда повторный (в поликлинике) | D131: 1 консультация | E131: 108
A132: B | B132: 01.050.001.002 | C132: Прием (осмотр, консультация) врача - травматолога - ортопеда первичный (на дому) | D132: 1 консультация | E132: 695
A133: B | B133: 04.050.002 | C133: Профилактический прием (осмотр, консультация) врача - травматолога - ортопеда | D133: 1 консультация | E133: 154
A134: А | B134: 11.04.004 | C134: Внутрисуставное введение лекарственных препаратов | D134: 1 услуга | E134: 299
A135: А | B135: 15.02.002 | C135: Наложение иммобилизационной повязки при синдроме длительного сдавливания | D135: 1 услуга | E135: 353
A136: А | B136: 15.02.001 | C136: Наложение повязки при заболеваниях мыщц | D136: 1 услуга | E136: 330
A137: А | B137: 15.03.001 | C137: Наложение повязки при переломах костей | D137: 1 услуга | E137: 353
A138: А | B138: 15.03.002.001 | C138: Наложение иммобилизационной повязки при переломах позвоночника | D138: 1 услуга | E138: 763
A139: А | B139: 15.03.004 | C139: Наложение корсета при патологии шейного отдела позвоночника | D139: 1 услуга | E139: 355
A140: А | B140: 15.03.005 | C140: Наложение корсета патологии грудного отдела позвоночника | D140: 1 услуга | E140: 701
A141: А | B141: 15.03.006 | C141: Наложение корсета при патологии поясничного отдела позвоночника | D141: 1 услуга | E141: 701
A142: А | B142: 15.03.007 | C142: Наложение шины при переломах костей | D142: 1 услуга | E142: 224
A143: А | B143: 15.04.002 | C143: Наложение иммобилизационной повязки при вывихах (подвывихах) суставов | D143: 1 услуга | E143: 328
A144: А | B144: 15.04.001 | C144: Наложение повязки при вывихах (подвывихах) суставов | D144: 1 услуга | E144: 328
A145: А | B145: 16.01.034.002 | C145: Операция в амбулаторных условиях (в кабинете врача-травматолога-ортопеда) | D145: 1 операция | E145: 601
A146: Кабинет врача - оториноларинголога
A147: B | B147: 01.028.001.001 | C147: Прием (осмотр, консультация) врача - оториноларинголога первичный (в поликлинике) | D147: 1 консультация | E147: 309
A148: B | B148: 01.028.001.002 | C148: Прием (осмотр, консультация) врача - оториноларинголога повторный (в поликлинике) | D148: 1 консультация | E148: 216
A149: B | B149: 01.028.002.001 | C149: Прием (осмотр, консультация) врача - оториноларинголога первичный (на дому) | D149: 1 консультация | E149: 926
A150: B | B150: 04.028.002 | C150: Профилактический прием (осмотр, консультация) врача - оториноларинголога | D150: 1 консультация | E150: 154
A151: В | B151: 01.028.001.003 | C151: Прием (осмотр, консультация) врача - оториноларинголога первичный (консультация районного специалиста) | D151: 1 консультация | E151: 463
A152: A | B152: 16.01.011 | C152: Вскрытие фурункула (карбункула) | D152: 1 услуга | E152: 436
A153: A | B153: 16.08.011 | C153: Удаление инородного тела носа | D153: 1 услуга | E153: 359
A154: A | B154: 16.08.016 | C154: Промывание лакун миндалин | D154: 1 услуга | E154: 374
A155: A | B155: 12.25.002 | C155: Речевая аудиометрия | D155: 1 услуга | E155: 232
A156: A | B156: 11.08.004 | C156: Пункция околоносовых пазух | D156: 1 услуга | E156: 431
A157: A | B157: 16.08.006.001 | C157: Механическая остановка кровотечения (передняя и задняя тампонада носа) (передняя) | D157: 1 услуга | E157: 385
A158: A | B158: 16.08.006.002 | C158: Механическая остановка кровотечения(задняя тампонада носа) (задняя) | D158: 1 услуга | E158: 467
A159: А | B159: 03.25.001 | C159: Вестибулометрия | D159: 1 исследование | E159: 345
A160: А | B160: 16.25.008 | C160: Удаление инородного тела из слухового прохода | D160: 1 услуга | E160: 263
A161: А | B161: 16.25.007 | C161: Удаление ушной серы | D161: 1 услуга | E161: 340
A162: Кабинет врача - невролога
A163: B | B163: 01.023.001.001 | C163: Прием (осмотр, консультация) врача - невролога первичный (в поликлинике) | D163: 1 консультация | E163: 327
A164: B | B164: 01.023.002.001 | C164: Прием (осмотр, консультация) врача - невролога повторный (в поликлинике) | D164: 1 консультация | E164: 229
A165: B | B165: 01.023.001.002 | C165: Прием (осмотр, консультация) врача - невролога первичный (на дому) | D165: 1 консультация | E165: 736
A166: B | B166: 04.023.002 | C166: Профилактический прием (осмотр, консультация) врача - невролога | D166: 1 консультация | E166: 180
A167: А | B167: 22.30.006 | C167: Вибрационное воздействие | D167: 1 услуга | E167: 52
A168: Кабинет медицинского психолога
A169: А | B169: 13.29.006 | C169: Психологическое консультирование | D169: 1 консультация | E169: 430
A170: В | B170: 02.069.001 | C170: Прием(тестирование, консультация) медицинского психолога первичный | D170: 1 консультация | E170: 430
A171: В | B171: 02.069.001.001 | C171: Прием(тестирование, консультация) медицинского психолога первичный (на дому) | D171: 1 консультация | E171: 430
A172: В | B172: 02.069.002 | C172: Прием(тестирование, консультация) медицинского психолога повторное | D172: 1 консультация | E172: 378
A173: В | B173: 04.069.001 | C173: Школа психологической профилактики для пациентов и родственников | D173: 1 сеанс | E173: 430
A174: В | B174: 04.069.002 | C174: Индивидуальное краткое профилактическое консультирование по коррекции факторов риска развития неинфекционных заболеваний | D174: 1 консультация | E174: 378
A175: 0 | B175: 04.069.003 | C175: Индивидуальное углубленное профилактическое консультирование по коррекции факторов риска развития неинфекционных заболеваний | D175: 1 консультация | E175: 638
A176: В | B176: 04.069.004 | C176: Индивидуальное углубленное профилактическое консультирование по коррекции факторов риска развития неинфекционных заболеваний повторное | D176: 1 консультация | E176: 638
A177: В | B177: 04.069.005 | C177: Групповое профилактическое консультарование по коррекции факторов риска развития неифекционных заболеваний | D177: 1 консультация | E177: 169
A178: В | B178: 13.29.003.001 | C178: Тестологическое психодиагностическое обследование | D178: 1 сеанс | E178: 482
A179: В | B179: 13.29.003.001.001 | C179: Тестологическое психодиагностическое обследование (на дому) | D179: 1 сеанс | E179: 482
A180: А | B180: 13.29.006.003 | C180: Семейное психологическое консультирование | D180: 1 сеанс | E180: 638
A181: А | B181: 13.29.005.001 | C181: Арттерапия | D181: 1 сеанс | E181: 169
A182: А | B182: 13.29.007.001.001 | C182: Индивидуальная психологическая коррекция (для младших школьников и дошкольников) | D182: 1 сеанс | E182: 378
A183: Кабинет врача - фтизиатра
A184: B | B184: 01.055.001.001 | C184: Прием (осмотр, консультация) врача - фтизиатра первичный (в поликлинике) | D184: 1 консультация | E184: 324
A185: B | B185: 01.055.002.001 | C185: Прием (осмотр, консультация) врача - фтизиатра повторный (в поликлинике) | D185: 1 консультация | E185: 216
A186: В | B186: 01.055.001.002 | C186: Прием (осмотр, консультация) врача - фтизиатра первичный (на дому) | D186: 1 консультация | E186: 810
A187: В | B187: 04.055.002 | C187: Профилактический прием (осмотр, консультация) врача - фтизиатра | D187: 1 консультация | E187: 270
A188: Кабинет врача - психиатра
A189: В | B189: 04.035.002 | C189: Профилактический прием (осмотр, консультация) врача-психиатра | D189: 1 консультация | E189: 208
A190: Кабинет врача психиатра-нарколога
A191: В | B191: 04.036.002 | C191: Профилактический прием (осмотр, консультация) врача психиатра-нарколога | D191: 1 консультация | E191: 200
A192: В | B192: 01.036.001 | C192: Прием (осмотр, консультация) врача-психиатра-нарколога первичный | D192: 1 консультация | E192: 308
A193: А | B193: 09.28.055.001.001 | C193: Определение наличия психоактивных веществ в моче с помощью тест-полоски (тест полоска "ИммуноХром-6-Мульти-Экспресс" на 6 видов наркотиков) | D193: 1 определение | E193: 753
A194: А | B194: 09.28.055.001.002 | C194: Определение наличия психоактивных веществ в моче с помощью тест-полоски (тест полоска "ИммуноХром-Фенциклидин" на 1 вид наркотика) | D194: 1 определение | E194: 431
A195: Услуги специалистов детской поликлиники № 1
A197: В | B197: 01.031.001.001 | C197: Прием (осмотр, консультация) врача - педиатра первичный (в поликлинике) | D197: 1 консультация | E197: 221
A198: В | B198: 01.031.002.001 | C198: Прием (осмотр, консультация) врача - педиатра повторный (в поликлинике) | D198: 1 консультация | E198: 152
A199: В | B199: 01.031.001.002 | C199: Прием (осмотр, консультация) врача - педиатра (на дому) | D199: 1 консультация | E199: 415
A200: В | B200: 04.031.002 | C200: Профилактический прием (осмотр, консультация) врача - педиатра | D200: 1 консультация | E200: 208
A201: В | B201: 01.031.001.003 | C201: Прием (осмотр, консультация) врача - педиатра первичный (консультация районного специалиста) | D201: 1 консультация | E201: 415
A202: В | B202: 01.031.001.004 | C202: Прием (осмотр, консультация) врача - педиатра первичный (с целью оформления медицинской карты на ребенка) | D202: 1 осмотр | E202: 156
A203: B | B203: 01.023.001.003 | C203: Прием (осмотр, консультация) врача - невролога первичный (в поликлинике) | D203: 1 консультация | E203: 340
A204: B | B204: 01.023.002.002 | C204: Прием (осмотр, консультация) врача - невролога повторный (в поликлинике) | D204: 1 консультация | E204: 232
A205: B | B205: 01.023.001.004 | C205: Прием (осмотр, консультация) врача - невролога первичный (на дому) | D205: 1 консультация | E205: 695
A206: B | B206: 01.023.002.001 | C206: Профилактический прием (осмотр, консультация) врача - невролога | D206: 1 консультация | E206: 232
A207: B | B207: 01.028.001.004 | C207: Прием (осмотр, консультация) врача - оториноларинголога первичный (в поликлинике) | D207: 1 консультация | E207: 309
... 1078 more rows
